Cogmind - Beta 16.1 @@@ ROGUE MODE // 2026.02.17 @ 11:39:09 Player: SunShine214 Result: Destroyed by D-63 Destroyer with Heavy Rocket Launcher Performance ------------- Evolutions (6) 3000 Regions Visited (20) 4000 Robots Destroyed (84) 420 Value Destroyed (2270) 2270 Prototype IDs (20) 400 Alien Tech Used (0) 0 Bonus (1482) 1482 TOTAL SCORE: 11572 Bonus ------- High Alert Combat Kills 64 Follower Combat Kills 118 Entered DSFs 1000 Met Data Miner 300 Cogmind --------- Core Integrity 0/1150 Matter 25/300 Energy 100/100 System Corruption 1% Temperature Cool (0) Movement Hovering (70) Location -4/Armory Parts ------- > --- POWER (2) -------- (None) > --- PROPULSION (6) --- Improved Gyrokinetic Inverter > --- UTILITY (9) ------ Advanced Signal Interpreter Advanced Targeting Computer Core Analyzer > --- WEAPON (2) ------- (None) > --- INVENTORY (5) ---- Advanced Medium Treads Advanced Signal Interpreter Mini Drone Bay (3/3) Hardcell Cannon Hardcell Cannon Peak State ------------ > --- POWER ------------ Light Fission Core > --- PROPULSION ------- Cesium-ion Thruster Cesium-ion Thruster Cesium-ion Thruster Improved VTOL Module Improved VTOL Module > --- UTILITY ---------- Small Storage Unit Improved Sensor Array Advanced Signal Interpreter Advanced Targeting Computer Advanced Targeting Computer Advanced Targeting Computer Hacking Suite Advanced Hacking Suite > --- WEAPON ----------- Variable Charge Gun Flak Gun > --- INVENTORY -------- Cesium-ion Thruster Cesium-ion Thruster Improved Propulsion Shielding Heavy Missile Launcher Long-range Missile Launcher Powered Hammer [Rating: 61] Favorites ----------- Power Light Nuclear Core Engine Ion Engine Power Core Light Nuclear Core Reactor Light Antimatter Reactor Propulsion Light Treads Treads Light Treads Leg Carbon-fiber Leg Hover Unit Improved Gyrokinetic Inverter Flight Unit Cesium-ion Thruster Utility Advanced Targeting Computer Device Thief Drone Bay Storage Small Storage Unit Processor Advanced Targeting Computer Hackware Hacking Suite Protection Light Armor Plating Weapon Autogun Energy Gun Variable Charge Gun Energy Cannon Long-range Phase Cannon Ballistic Gun Autogun Ballistic Cannon Hardcell Cannon Launcher Heavy Missile Launcher Impact Weapon Powered Hammer Build | -11 -10 -10 -9 -9 -9 -8 -8 -7 -7 -7 -7 -6 -6 -6 -6 -5 -5 -5 -4 -4 ------- Run | Yrd Mat Min Mat Min Exi Min Mat Fac Was Fac DSF Fac Low Low Dat Pro Fac DSF Fac Arm Slots Evolved 12 | . . . 2 . . . 2 2 . . . 2 . . . . 2 . 2 . Power 1 | . . . . . . . . 1 . . . . . . . . . . . . Propulsion 4 | . . . . . . . 2 1 . . . . . . . . . . 1 . Utility 7 | . . . 2 . . . . . . . . 2 . . . . 2 . 1 . Weapon . | . . . . . . . . . . . . . . . . . . . . . Parts Attached 76 | 6 6 . 2 4 1 1 20 4 2 6 . 4 . . . . 2 1 15 2 Power 14 | 1 . . . 2 . 1 2 1 1 2 . 1 . . . . . . 3 . Engine 5 | 1 . . . 1 . . 1 . . 2 . . . . . . . . . . Core 8 | . . . . 1 . 1 1 1 1 . . 1 . . . . . . 2 . Reactor 1 | . . . . . . . . . . . . . . . . . . . 1 . Propulsion 26 | 2 3 . . 1 . . 11 2 . 3 . . . . . . . . 3 1 Treads 8 | 2 3 . . 1 . . 2 . . . . . . . . . . . . . Leg 2 | . . . . . . . 2 . . . . . . . . . . . . . Wheel . | . . . . . . . . . . . . . . . . . . . . . Hover 1 | . . . . . . . . . . . . . . . . . . . . 1 Flight 15 | . . . . . . . 7 2 . 3 . . . . . . . . 3 . Utility 19 | 1 1 . 1 1 1 . 4 . . . . 3 . . . . 2 . 4 1 Device 5 | . . . . 1 . . . . . . . 1 . . . . . . 2 1 Storage 3 | 1 . . . . 1 . 1 . . . . . . . . . . . . . Processor 7 | . 1 . . . . . 3 . . . . 2 . . . . . . 1 . Hackware 2 | . . . . . . . . . . . . . . . . . 2 . . . Protection 2 | . . . 1 . . . . . . . . . . . . . . . 1 . Artifact . | . . . . . . . . . . . . . . . . . . . . . Weapon 17 | 2 2 . 1 . . . 3 1 1 1 . . . . . . . 1 5 . Energy Gun 2 | . . . . . . . . . 1 . . . . . . . . . 1 . Energy Cannon 1 | . . . . . . . . . . . . . . . . . . . 1 . Ballistic Gun 9 | 2 2 . 1 . . . 2 1 . 1 . . . . . . . . . . Ballistic Cannon 1 | . . . . . . . . . . . . . . . . . . . 1 . Launcher 3 | . . . . . . . 1 . . . . . . . . . . 1 1 . Special Weapon . | . . . . . . . . . . . . . . . . . . . . . Impact Weapon 1 | . . . . . . . . . . . . . . . . . . . 1 . Slashing Weapon . | . . . . . . . . . . . . . . . . . . . . . Piercing Weapon . | . . . . . . . . . . . . . . . . . . . . . Special Melee Weapon . | . . . . . . . . . . . . . . . . . . . . . Unidentified Prototypes 7 | . . . . 1 . . 2 . 1 1 . . . . . . . . 2 . Parts Lost 33 | . . . . . . 2 3 4 . . . . . . . . . 10 5 9 Power 5 | . . . . . . . 1 . . . . . . . . . . 1 2 1 Propulsion 12 | . . . . . . 1 . 3 . . . . . . . . . 4 1 3 Utility 11 | . . . . . . 1 1 . . . . . . . . . . 2 2 5 Weapon 5 | . . . . . . . 1 1 . . . . . . . . . 3 . . Highest Loss Streak 10 | . . . . . . 2 1 3 . . . . . . . . . 10 3 9 To Critical Strikes . | . . . . . . . . . . . . . . . . . . . . . Average Backups 7 | 1 7 8 8 7 8 8 7 7 8 7 8 7 8 8 8 8 6 5 6 7 Power . | . 1 1 1 . . . . . . . . . . . . . . . . . Propulsion 2 | . . 2 2 2 3 3 2 1 1 1 2 2 2 2 2 2 2 2 1 2 Utility . | . . . . . . . . 3 4 3 4 3 3 3 3 3 1 1 2 2 Weapon 4 | . 6 5 5 5 5 5 4 3 3 2 1 2 3 3 3 3 3 2 3 3 Tool/Special . | . . . . . . . . . . . . . . . . . . . . . Unused Backups 24 | . 2 . . 1 . 2 8 . 1 5 1 . . . . . . . 1 3 Power . | . . . . . . . . . . . . . . . . . . . . . Propulsion 6 | . . . . 1 . 2 2 . . . . . . . . . . . . 1 Utility 8 | . . . . . . . 1 . 1 4 . . . . . . . . 1 1 Weapon 10 | . 2 . . . . . 5 . . 1 1 . . . . . . . . 1 Tool/Special . | . . . . . . . . . . . . . . . . . . . . . Average Slot Usage (%) 89 | . 98 100 81 94 100 82 89 82 84 87 92 92 93 93 93 93 88 68 62 56 Engine 3 | . 14 14 11 6 . . 1 1 . 2 7 5 . . . . . . . . Core 5 | . . . . 4 11 11 7 5 7 5 . . 6 6 6 6 5 2 1 5 Treads 12 | . 28 28 22 22 22 13 5 . . . . . . . . . . . . . Leg 1 | . . . . . . . 6 . . . . . . . . . . . . . Flight 10 | . . . . . . . 14 32 30 33 38 33 33 33 33 33 29 17 15 11 Device 4 | . . . . 5 11 11 1 . . . . 6 6 6 6 6 5 2 2 . Storage 9 | . 14 14 11 11 11 11 9 7 7 7 7 6 6 6 6 6 5 5 5 5 Processor 16 | . 12 14 11 11 11 11 24 23 23 23 23 25 26 26 26 26 23 21 20 21 Protection 4 | . . . 4 11 11 2 . . . . . . . . . . . . 4 3 Ballistic Gun 17 | . 28 28 22 22 22 22 17 11 15 6 7 6 6 6 6 6 5 2 . . Peak Build Rating 61 | 6 11 11 12 21 21 21 35 37 42 47 43 55 53 53 53 53 61 61 53 45 Average Rating 24 | 5 10 11 11 16 21 19 26 30 31 38 43 49 53 53 53 53 60 41 44 38 On Entrance 32 | . 6 11 11 12 21 21 19 34 30 35 43 43 53 53 53 53 53 61 25 45 Avg Prop Armor Cover (%) 8 | . . . . . . . 8 . . . . . . . . . . . . . Naked Turns . | . . . . . . . . . . . . . . . . . . . . . Heaviest Build 27 | 13 16 16 19 23 23 23 20 20 19 24 24 25 22 22 22 22 22 22 27 15 Greatest Support 40 | 40 40 40 40 40 40 40 25 25 20 25 25 25 25 25 25 25 25 25 19 15 Greatest Overweight (x) 1 | . . . . . . . . . . . . . . . . . . . 1 . Average Overweight (x) . | . . . . . . . . . . . . . . . . . . . . . Largest Inventory Capacity 8 | 8 8 8 8 8 8 8 8 8 8 8 8 8 8 8 8 8 8 8 8 8 Average Capacity 7 | 7 8 8 8 8 8 8 8 8 8 8 8 8 8 8 8 8 8 8 8 7 Most Carried 8 | 3 8 8 8 8 8 8 8 8 8 8 8 8 8 8 8 8 7 6 8 8 Average Carried 7 | 1 7 8 8 7 8 8 7 7 7 7 7 7 8 8 8 8 6 5 6 7 Final Capacity 8 | 8 8 8 8 8 8 8 8 8 8 8 8 8 8 8 8 8 8 8 8 5 Final Carried 8 | 3 8 8 8 8 8 8 8 8 8 8 8 8 8 8 8 8 6 5 8 5 Class Distribution -------------------- 69% | Mutant 23% | Sprinter 4% | Scavenger-Sprinter Dominant Class ---------------- Mutant | -10/Materials Mutant | -10/Mines Mutant | -9/Materials Mutant | -9/Mines Mutant | -9/Exiles Mutant | -8/Mines Mutant | -8/Materials Scavenger-Sprinter | -7/Factory Scavenger-Sprinter | -7/Waste Sprinter | -7/Factory Sprinter | -7/DSF Sprinter | -6/Factory Sprinter | -6/Lower Caves Sprinter | -6/Lower Caves Sprinter | -6/Data Miner Sprinter | -5/Proximity Caves Sprinter | -5/Factory Hacker-Sprinter | -5/DSF Hacker-Sprinter | -4/Factory Sprinter | -4/Armory Resources | -11 -10 -10 -9 -9 -9 -8 -8 -7 -7 -7 -7 -6 -6 -6 -6 -5 -5 -5 -4 -4 ----------- Run | Yrd Mat Min Mat Min Exi Min Mat Fac Was Fac DSF Fac Low Low Dat Pro Fac DSF Fac Arm Matter Collected 2099 | 321 169 15 56 129 . 148 683 168 . . . 247 . 37 . . . 31 95 . Remotely . | . . . . . . . . . . . . . . . . . . . . . Salvage Created 2544 | 141 169 15 56 37 . 165 1088 184 . . . 247 . . . . . 53 389 . Parts 150 | 11 13 2 5 2 . 17 62 13 . . . 7 . . . . . 5 13 . Haulers Intercepted 8 | . 1 . . . . . 3 1 . . . 2 . . . . . . 1 . Recyclers Shooed 1 | . . 1 . . . . . . . . . . . . . . . . . . Parts Field Recycled . | . . . . . . . . . . . . . . . . . . . . . Retrieved Matter . | . . . . . . . . . . . . . . . . . . . . . Parts Self-Destructed . | . . . . . . . . . . . . . . . . . . . . . Prevented 2 | . . . . . . . . . . . . . 2 . . . . . . . Parts Restored . | . . . . . . . . . . . . . . . . . . . . . Kills | -11 -10 -10 -9 -9 -9 -8 -8 -7 -7 -7 -7 -6 -6 -6 -6 -5 -5 -5 -4 -4 ------- Run | Yrd Mat Min Mat Min Exi Min Mat Fac Was Fac DSF Fac Low Low Dat Pro Fac DSF Fac Arm Combat Hostiles Destroyed 60 | . 2 . 1 2 . 9 24 5 . . . . . . . . . 3 14 . Guns 44 | . 2 . 1 2 . 9 24 5 . . . . . . . . . 1 . . Cannons 1 | . . . . . . . . . . . . . . . . . . . 1 . AOE 15 | . . . . . . . . . . . . . . . . . . 2 13 . Classes Destroyed 13 | 2 3 . 1 1 . 1 1 1 . . . 1 . . . . . 2 . . Worker 2 | . . . . . . . . 1 . . . . . . . . . . 1 . Tunneler 5 | 4 . 1 . . . . . . . . . . . . . . . . . . Hauler 8 | . 1 . . . . . 3 1 . . . 2 . . . . . . 1 . Recycler 2 | 1 . . . . . . 1 . . . . . . . . . . . . . Operator 1 | . . . . . . . . . . . . 1 . . . . . . . . Watcher 6 | . 2 . . . . . 1 1 . . . 2 . . . . . . . . Swarmer 34 | . . . . 2 . 8 10 4 . . . . . . . . . . 10 . Cutter 2 | . . . . . . . . . . . . . . . . . . 2 . . Grunt 9 | . 2 . . . . . 5 . . . . . . . . . . . 2 . Brawler 1 | . . . . . . . 1 . . . . . . . . . . . . . Sentry 8 | . . . 1 . . . 7 . . . . . . . . . . . . . Specialist 1 | . . . . . . . . . . . . . . . . . . 1 . . Hunter 5 | . . . . . . 1 1 1 . . . . . . . . . . 2 . Best Kill Streak 9 | 2 2 1 1 2 . 9 8 4 . . . 3 . . . . . 3 8 . Combat Bots Only 9 | . 2 . 1 2 . 9 6 4 . . . . . . . . . 3 7 . Max Kills in Single Turn 5 | 1 1 1 1 1 . 2 2 2 . . . 1 . . . . . 1 5 . Gunslinging 1 | . . . . . . 1 1 1 . . . . . . . . . . . . Exploded 5 | . . . . . . . . . . . . . . . . . . 1 5 . Melee . | . . . . . . . . . . . . . . . . . . . . . Uniques/NPCs Destroyed . | . . . . . . . . . . . . . . . . . . . . . Combat | -11 -10 -10 -9 -9 -9 -8 -8 -7 -7 -7 -7 -6 -6 -6 -6 -5 -5 -5 -4 -4 -------- Run | Yrd Mat Min Mat Min Exi Min Mat Fac Was Fac DSF Fac Low Low Dat Pro Fac DSF Fac Arm Hostile Shots Fired 335 | . 11 . 4 12 . 66 82 24 . . 1 6 . . . . . 38 65 26 Missed 115 | . 3 . 1 3 . 8 38 8 . . 1 2 . . . . . 13 36 2 Hits 220 | . 8 . 3 9 . 58 44 16 . . . 4 . . . . . 25 29 24 Melee 1 | . . . . . . . . . . . . . . . . . . 1 . . Projectile 219 | . 8 . 3 9 . 58 44 16 . . . 4 . . . . . 24 29 24 AOE 20 | . . . . . . . . . . . . . . . . . . 2 . 18 Critical Strikes 8 | . . . . . . . 3 . . . . . . . . . . 2 3 . Damage Taken 4505 | . 110 . 46 84 . 530 632 568 . . . 22 . . . . . 758 675 1080 Core 2043 | . 10 . . 8 . 85 160 343 . . . 11 . . . . . 227 294 905 Absorbed by Shields . | . . . . . . . . . . . . . . . . . . . . . Redirected to Shielding 100 | . . . . . . . . . . . . . . . . . . . 76 24 Regen/Repaired (Parts) 133 | . . . . . . . . 133 . . . . . . . . . . . . Core Remaining (%) 81 | 100 . 96 . . . 76 70 . . . 51 . . . . 98 . 77 . . Volleys Fired 181 | 25 12 5 3 5 . 18 59 18 . 1 . 17 . . . . . 6 12 . Largest 2 | 2 2 2 2 2 . 2 2 2 . 2 . 2 . . . . . 2 2 . Hottest 103 | 40 46 46 46 46 . 46 56 56 . 103 . 103 . . . . . 71 94 . Shots Fired 343 | 50 24 10 6 10 . 36 118 30 . 2 . 33 . . . . . 10 14 . Gun 324 | 50 24 10 6 10 . 36 118 30 . 2 . 33 . . . . . 5 . . Cannon 2 | . . . . . . . . . . . . . . . . . . . 2 . Launcher 17 | . . . . . . . . . . . . . . . . . . 5 12 . Special . | . . . . . . . . . . . . . . . . . . . . . Kinetic 309 | 50 24 10 6 10 . 36 118 30 . 1 . 17 . . . . . 5 2 . Thermal 17 | . . . . . . . . . . 1 . 16 . . . . . . . . Explosive 17 | . . . . . . . . . . . . . . . . . . 5 12 . Electromagnetic . | . . . . . . . . . . . . . . . . . . . . . Robot Hit Streak 24 | 7 6 5 5 1 . 8 24 20 . . . 16 . . . . . 5 13 . Robot Miss Streak 6 | 4 2 1 1 3 . 5 4 6 . . . 4 . . . . . 4 . . Penetration Max . | . . . . . . . . . . . . . . . . . . . . . Secondary Targets 10 | . . . . . . 4 4 2 . . . . . . . . . . . . Max Gunslinging Chain 1 | . . . . . . 1 1 1 . . . . . . . . . . . . Shots Hit Robots 250 | 32 15 7 5 3 . 21 93 27 . . . 27 . . . . . 10 8 2 Core Hits 216 | 9 8 1 2 2 . 11 81 38 . . . 25 . . . . . 12 27 . Critical Kills 1 | . . . . 1 . . . . . . . . . . . . . . . . Critical Parts Destroyed . | . . . . . . . . . . . . . . . . . . . . . Critical Strikes 1 | . . . . 1 . . . . . . . . . . . . . . . . Destroy 1 | . . . . 1 . . . . . . . . . . . . . . . . Melee Attacks 11 | . . . . . . . . . . . . . . . . . . . 9 2 Impact 11 | . . . . . . . . . . . . . . . . . . . 9 2 Slashing . | . . . . . . . . . . . . . . . . . . . . . Piercing . | . . . . . . . . . . . . . . . . . . . . . Sneak Attacks . | . . . . . . . . . . . . . . . . . . . . . Combat Hostiles . | . . . . . . . . . . . . . . . . . . . . . Follow-up Attacks . | . . . . . . . . . . . . . . . . . . . . . Damage Inflicted 5870 | 291 257 110 72 57 . 323 1609 488 . . . 566 . . . . . 434 1606 57 Guns 3830 | 291 257 110 72 48 . 314 1601 478 . . . 566 . . . . . 93 . . Cannons 60 | . . . . . . . . . . . . . . . . . . . 60 . Explosions 1897 | . . . . . . . . 10 . . . . . . . . . 341 1546 . Melee 57 | . . . . . . . . . . . . . . . . . . . . 57 Ramming 26 | . . . . 9 . 9 8 . . . . . . . . . . . . . Kinetic 3641 | 291 257 110 72 48 . 314 1601 478 . . . 317 . . . . . 93 60 . Thermal 249 | . . . . . . . . . . . . 249 . . . . . . . . Explosive 1862 | . . . . . . . . 10 . . . . . . . . . 341 1511 . Electromagnetic 35 | . . . . . . . . . . . . . . . . . . . 35 . Impact 57 | . . . . . . . . . . . . . . . . . . . . 57 Slashing . | . . . . . . . . . . . . . . . . . . . . . Piercing . | . . . . . . . . . . . . . . . . . . . . . Highest Corruption 2 | . . . . . . . 2 . . . . . . . . . . . 1 1 Average Corruption 1 | . . . . . . . 2 . . . . . . . . . . . 1 1 Corruption Purged . | . . . . . . . . . . . . . . . . . . . . . Corruption Blocked . | . . . . . . . . . . . . . . . . . . . . . Effects 3 | . . . . . . . . . . . . . . . . . . . 2 1 Message Errors 1 | . . . . . . . . . . . . . . . . . . . 1 . Matter Fused 2 | . . . . . . . . . . . . . . . . . . . 1 1 Overload Shots . | . . . . . . . . . . . . . . . . . . . . . Overflow Damage 222 | . . . . . . . . 151 . . . . . . . . . 27 44 . Projectiles . | . . . . . . . . . . . . . . . . . . . . . Explosions 222 | . . . . . . . . 151 . . . . . . . . . 27 44 . Melee . | . . . . . . . . . . . . . . . . . . . . . Knockbacks . | . . . . . . . . . . . . . . . . . . . . . Impact . | . . . . . . . . . . . . . . . . . . . . . Kinetic . | . . . . . . . . . . . . . . . . . . . . . Secondary . | . . . . . . . . . . . . . . . . . . . . . Self-Inflicted Damage 427 | . . . . . . . . 327 . . . . . . . . . . 100 . Shots 7 | . . . . . . . . 4 . . . . . . . . . . 3 . Rammed 5 | . . . . 2 . 3 . . . . . . . . . . . . . . Targets Rammed 7 | . . . . 2 . 3 2 . . . . . . . . . . . . . Kicked 2 | . . . . . . . 2 . . . . . . . . . . . . . Crushed . | . . . . . . . . . . . . . . . . . . . . . Highest Temperature 230 | . 50 12 . 12 . 22 42 12 . 49 . 230 1 1 1 1 . 11 36 . Average Temperature 39 | . 16 5 . 6 . 7 10 6 . 8 . 122 1 1 1 1 . 7 22 . Received Heat Transfer 613 | . 66 . 9 21 . . 261 . . . . . . . . . . 96 142 18 Siege Activations . | . . . . . . . . . . . . . . . . . . . . . Martial Activations . | . . . . . . . . . . . . . . . . . . . . . Shielding Activations . | . . . . . . . . . . . . . . . . . . . . . Robots Disrupted . | . . . . . . . . . . . . . . . . . . . . . Combat Hostiles . | . . . . . . . . . . . . . . . . . . . . . Robots Corrupted . | . . . . . . . . . . . . . . . . . . . . . Combat Hostiles . | . . . . . . . . . . . . . . . . . . . . . Parts Fried . | . . . . . . . . . . . . . . . . . . . . . Impact Corruptions . | . . . . . . . . . . . . . . . . . . . . . Robots Melted . | . . . . . . . . . . . . . . . . . . . . . Combat Hostiles . | . . . . . . . . . . . . . . . . . . . . . Parts Melted 2 | . . . . . . . . . . . . 2 . . . . . . . . Heat Transferred 444 | . . . . . . . . . . . . 444 . . . . . . . . Parts Sabotaged . | . . . . . . . . . . . . . . . . . . . . . Parts Stolen . | . . . . . . . . . . . . . . . . . . . . . Parts Stripped . | . . . . . . . . . . . . . . . . . . . . . Power Chain Reactions . | . . . . . . . . . . . . . . . . . . . . . Alert | -11 -10 -10 -9 -9 -9 -8 -8 -7 -7 -7 -7 -6 -6 -6 -6 -5 -5 -5 -4 -4 ------- Run | Yrd Mat Min Mat Min Exi Min Mat Fac Was Fac DSF Fac Low Low Dat Pro Fac DSF Fac Arm Maximum Alert Level 2 | . . . . . . . 2 1 . . . . . . . . . . 2 1 Low Security (%) 82 | 100 100 100 100 100 . 100 78 . 100 100 100 100 . . . . 100 100 18 23 Level 1 13 | . . . . . . . 16 100 . . . . . . . . . . 33 76 Level 2 4 | . . . . . . . 5 . . . . . . . . . . . 48 . Level 3 . | . . . . . . . . . . . . . . . . . . . . . Level 4 . | . . . . . . . . . . . . . . . . . . . . . Level 5 . | . . . . . . . . . . . . . . . . . . . . . High Security . | . . . . . . . . . . . . . . . . . . . . . Max Security . | . . . . . . . . . . . . . . . . . . . . . Peak Influence 599 | 10 50 5 40 73 . 175 461 373 112 71 29 50 . . . . . 90 599 292 Initial 292 | . . . . 15 . . 21 209 112 71 14 14 . . . . . 1 15 292 Average 89 | 1 11 . 15 11 . 104 100 315 108 43 15 34 . . . . . 38 367 263 Influence Increases 2627 | 25 92 5 83 131 . 235 749 281 . 20 15 96 . . . . 2 120 773 . Destroy 0b10 Robot/C 1300 | . 40 . 40 100 . 200 480 100 . . . . . . . . . 60 280 . Destroy 0b10 Robot/NC 120 | 25 15 5 . . . . 25 15 . . . 25 . . . . . . 10 . Destroy Leader 278 | . 16 . 20 10 . 30 128 24 . . . 8 . . . . . 10 32 . Allied During Kill 28 | . . . 10 6 . 5 7 . . . . . . . . . . . . . Successful Hack 94 | . 21 . 13 . . . 2 . . 5 . 33 . . . . 2 . 18 . Disable Machine 180 | . . . . . . . 15 75 . 15 . 15 . . . . . . 60 . Destroy Structure 282 | . . . . . . . 2 52 . . . . . . . . . 50 178 . Partial Spotted 75 | . . . . . . . 15 15 . . . . . . . . . . 45 . Lose Combat Pursuer 270 | . . . . 15 . . 75 . . . 15 15 . . . . . . 150 . Influence Decreases 2435 | 25 92 5 43 171 . 180 344 421 218 101 7 75 50 . . . . 92 205 406 Entered New Map 912 | . . . . 25 . . 34 251 208 31 7 15 19 . . . . 1 15 306 Time Decay 1205 | 25 92 5 43 146 . 160 283 130 10 70 . 60 31 . . . . . 140 10 Lost Part 311 | . . . . . . 20 20 40 . . . . . . . . . 91 50 90 Lost Ally 7 | . . . . . . . 7 . . . . . . . . . . . . . Squads Dispatched 11 | . 1 . 1 . . . 2 2 . . . 2 . . . . . 1 2 . Investigation 4 | . 1 . . . . . 2 1 . . . . . . . . . . . . Extermination 1 | . . . . . . . . 1 . . . . . . . . . . . . Reinforcement 6 | . . . 1 . . . . . . . . 2 . . . . . 1 2 . Assault . | . . . . . . . . . . . . . . . . . . . . . Garrison . | . . . . . . . . . . . . . . . . . . . . . Intercept . | . . . . . . . . . . . . . . . . . . . . . Searches Triggered . | . . . . . . . . . . . . . . . . . . . . . Construction Impeded . | . . . . . . . . . . . . . . . . . . . . . Haulers Reinforced 1 | . . . . . . . . . . . . . . . . . . . 1 . Active Scanning Responses . | . . . . . . . . . . . . . . . . . . . . . Cargo Convoy Interrupts . | . . . . . . . . . . . . . . . . . . . . . Stealth | -11 -10 -10 -9 -9 -9 -8 -8 -7 -7 -7 -7 -6 -6 -6 -6 -5 -5 -5 -4 -4 --------- Run | Yrd Mat Min Mat Min Exi Min Mat Fac Was Fac DSF Fac Low Low Dat Pro Fac DSF Fac Arm Distress Signals 7 | . . . . . . . 3 . . . . 1 . . . . . . 3 . Communications Jammed . | . . . . . . . . . . . . . . . . . . . . . Distress Signals . | . . . . . . . . . . . . . . . . . . . . . Times Spotted 119 | . 5 . 3 5 . 9 34 11 6 . 1 6 . . . . . 4 29 6 Peak Tracking Total 10 | . 2 . 1 3 . 8 10 4 6 . 1 2 . . . . . 4 7 6 Tactical Retreats 11 | . . . . 1 . . 3 . . . 1 1 . . . . . . 5 . Traps | -11 -10 -10 -9 -9 -9 -8 -8 -7 -7 -7 -7 -6 -6 -6 -6 -5 -5 -5 -4 -4 ------- Run | Yrd Mat Min Mat Min Exi Min Mat Fac Was Fac DSF Fac Low Low Dat Pro Fac DSF Fac Arm Traps Triggered 6 | . . . . . . . 1 1 . 2 1 . . . . . . 1 . . Indirectly . | . . . . . . . . . . . . . . . . . . . . . Trap Hack Attempts . | . . . . . . . . . . . . . . . . . . . . . Triggered . | . . . . . . . . . . . . . . . . . . . . . Disarmed . | . . . . . . . . . . . . . . . . . . . . . Reprogrammed . | . . . . . . . . . . . . . . . . . . . . . Reused . | . . . . . . . . . . . . . . . . . . . . . Traps Extracted . | . . . . . . . . . . . . . . . . . . . . . Installed . | . . . . . . . . . . . . . . . . . . . . . Triggered . | . . . . . . . . . . . . . . . . . . . . . Machines | -11 -10 -10 -9 -9 -9 -8 -8 -7 -7 -7 -7 -6 -6 -6 -6 -5 -5 -5 -4 -4 ---------- Run | Yrd Mat Min Mat Min Exi Min Mat Fac Was Fac DSF Fac Low Low Dat Pro Fac DSF Fac Arm Machines Disabled 12 | . . . . . . . 1 5 . 1 . 1 . . . . . . 4 . Max in Single Turn 4 | . . . . . . . 1 4 . 1 . 1 . . . . . . 2 . Machines Repaired . | . . . . . . . . . . . . . . . . . . . . . Machines Dismantled . | . . . . . . . . . . . . . . . . . . . . . Machines Sabotaged . | . . . . . . . . . . . . . . . . . . . . . Overloaded Fab Kills . | . . . . . . . . . . . . . . . . . . . . . Hacking | -11 -10 -10 -9 -9 -9 -8 -8 -7 -7 -7 -7 -6 -6 -6 -6 -5 -5 -5 -4 -4 --------- Run | Yrd Mat Min Mat Min Exi Min Mat Fac Was Fac DSF Fac Low Low Dat Pro Fac DSF Fac Arm Machines Accessed 36 | . 3 . 3 1 . . 7 9 . 1 . 5 . . 4 . 1 . 2 . Terminals 23 | . 3 . 3 . . . 5 4 . 1 . 4 . . . . 1 . 2 . Fabricators 3 | . . . . . . . . 2 . . . 1 . . . . . . . . Repair Stations 1 | . . . . . . . . 1 . . . . . . . . . . . . Recycling Units 2 | . . . . . . . 1 1 . . . . . . . . . . . . Scanalyzers 2 | . . . . . . . 1 1 . . . . . . . . . . . . Garrison Access . | . . . . . . . . . . . . . . . . . . . . . Total Hacks 76 | . 10 . 4 1 . . 14 14 . 2 . 6 . . 22 . 1 . 2 . Successful 41 | . 4 . 3 1 . . 2 3 . 1 . 3 . . 22 . 1 . 1 . Failed 34 | . 6 . 1 . . . 12 10 . 1 . 3 . . . . . . 1 . Catastrophic 14 | . 1 . . . . . 8 4 . . . 1 . . . . . . . . Database Lockouts 1 | . . . . . . . . 1 . . . . . . . . . . . . Manual 19 | . 6 . 2 . . . 7 2 . . . . . . . . . . 2 . Terminals 39 | . 10 . 4 . . . 10 5 . 2 . 5 . . . . 1 . 2 . Fabricators 4 | . . . . . . . . 3 . . . 1 . . . . . . . . Repair Stations 3 | . . . . . . . . 3 . . . . . . . . . . . . Recycling Units 2 | . . . . . . . 1 1 . . . . . . . . . . . . Scanalyzers 5 | . . . . . . . 3 2 . . . . . . . . . . . . Garrison Access . | . . . . . . . . . . . . . . . . . . . . . Terminal Hacks 36 | . 4 . 3 1 . . 1 . . 1 . 3 . . 22 . 1 . . . Record 3 | . . . . . . . . . . . . . . . 3 . . . . . Part Schematic 12 | . . . . . . . . . . . . . . . 12 . . . . . Robot Schematic 4 | . . . . . . . . . . . . . . . 4 . . . . . Prototype ID Bank 4 | . 1 . . . . . . . . . . . . . 3 . . . . . Open Door 1 | . . . . 1 . . . . . . . . . . . . . . . . Open DSF 3 | . . . . . . . . . . 1 . 1 . . . . 1 . . . Branch Access Points 2 | . 1 . 1 . . . . . . . . . . . . . . . . . Recall Investigation 1 | . . . . . . . 1 . . . . . . . . . . . . . Hauler Manifests 2 | . . . 1 . . . . . . . . 1 . . . . . . . . Registered Components 2 | . 1 . 1 . . . . . . . . . . . . . . . . . Zone Layout 2 | . 1 . . . . . . . . . . 1 . . . . . . . . Fabricator Hacks . | . . . . . . . . . . . . . . . . . . . . . Repair Station Hacks 2 | . . . . . . . . 2 . . . . . . . . . . . . Scan Component 1 | . . . . . . . . 1 . . . . . . . . . . . . Repair 1 | . . . . . . . . 1 . . . . . . . . . . . . Recycling Unit Hacks . | . . . . . . . . . . . . . . . . . . . . . Scanalyzer 2 | . . . . . . . 1 1 . . . . . . . . . . . . Retrieve Study 2 | . . . . . . . 1 1 . . . . . . . . . . . . Garrison Access Hacks . | . . . . . . . . . . . . . . . . . . . . . Unauthorized Hacks 1 | . . . . . . . . . . . . . . . . . . . 1 . Terminals 1 | . . . . . . . . . . . . . . . . . . . 1 . Botnet 1 | . . . . . . . . . . . . . . . . . . . 1 . Fabricators . | . . . . . . . . . . . . . . . . . . . . . Repair Stations . | . . . . . . . . . . . . . . . . . . . . . Recycling Units . | . . . . . . . . . . . . . . . . . . . . . Scanalyzers . | . . . . . . . . . . . . . . . . . . . . . Garrison Access . | . . . . . . . . . . . . . . . . . . . . . Data Cores Recovered . | . . . . . . . . . . . . . . . . . . . . . Used . | . . . . . . . . . . . . . . . . . . . . . Hacking Detections 24 | . 2 . 1 . . . 7 7 . 1 . 4 . . . . . . 2 . Full Trace Events 5 | . 1 . . . . . 3 1 . . . . . . . . . . . . Feedback Events . | . . . . . . . . . . . . . . . . . . . . . Feedback Blocked . | . . . . . . . . . . . . . . . . . . . . . Robot Schematics Acquired 4 | . . . . . . . . . . . . . . . 4 . . . . . Robots Built . | . . . . . . . . . . . . . . . . . . . . . Authchips . | . . . . . . . . . . . . . . . . . . . . . Time . | . . . . . . . . . . . . . . . . . . . . . Total Robot Build Rating . | . . . . . . . . . . . . . . . . . . . . . Part Schematics Acquired 12 | . . . . . . . . . . . . . . . 12 . . . . . Parts Built . | . . . . . . . . . . . . . . . . . . . . . Authchips . | . . . . . . . . . . . . . . . . . . . . . Time . | . . . . . . . . . . . . . . . . . . . . . Total Part Build Rating . | . . . . . . . . . . . . . . . . . . . . . Part Studies Acquired 2 | . . . . . . . 1 1 . . . . . . . . . . . . Parts Repaired 1 | . . . . . . . . 1 . . . . . . . . . . . . Time 44 | . . . . . . . . 44 . . . . . . . . . . . . Parts Recycled . | . . . . . . . . . . . . . . . . . . . . . Recycled Matter . | . . . . . . . . . . . . . . . . . . . . . Retrieved Matter . | . . . . . . . . . . . . . . . . . . . . . Retrieved Components . | . . . . . . . . . . . . . . . . . . . . . Parts Scanalyzed . | . . . . . . . . . . . . . . . . . . . . . Part Schematics Acquired . | . . . . . . . . . . . . . . . . . . . . . Parts Damaged . | . . . . . . . . . . . . . . . . . . . . . Bothacking | -11 -10 -10 -9 -9 -9 -8 -8 -7 -7 -7 -7 -6 -6 -6 -6 -5 -5 -5 -4 -4 ------------ Run | Yrd Mat Min Mat Min Exi Min Mat Fac Was Fac DSF Fac Low Low Dat Pro Fac DSF Fac Arm Used RIF Installer . | . . . . . . . . . . . . . . . . . . . . . Robots Hacked . | . . . . . . . . . . . . . . . . . . . . . Non-combat . | . . . . . . . . . . . . . . . . . . . . . Combat . | . . . . . . . . . . . . . . . . . . . . . Robot Hacks Applied . | . . . . . . . . . . . . . . . . . . . . . Relay Couplers Released . | . . . . . . . . . . . . . . . . . . . . . Fabnet Peak Effective % . | . . . . . . . . . . . . . . . . . . . . . Robots Rewired . | . . . . . . . . . . . . . . . . . . . . . Allies Hacked . | . . . . . . . . . . . . . . . . . . . . . Hacks Repelled . | . . . . . . . . . . . . . . . . . . . . . Allies | -11 -10 -10 -9 -9 -9 -8 -8 -7 -7 -7 -7 -6 -6 -6 -6 -5 -5 -5 -4 -4 -------- Run | Yrd Mat Min Mat Min Exi Min Mat Fac Was Fac DSF Fac Low Low Dat Pro Fac DSF Fac Arm Total Allies 3 | . . 3 . . . . . . . . . . . . . . . . . . Largest Group 3 | . . 3 3 1 1 1 . . . . . . . . . . . . . . Highest-Rated Group 40 | . . 40 40 8 8 8 . . . . . . . . . . . . . . Highest-Rated Ally 16 | . . 16 16 8 8 8 . . . . . . . . . . . . . . Total Orders 4 | . . . . . . 4 . . . . . . . . . . . . . . EXPLORE 1 | . . . . . . 1 . . . . . . . . . . . . . . RETURN 3 | . . . . . . 3 . . . . . . . . . . . . . . Ally Attacks 47 | . . . 10 19 . 5 13 . . . . . . . . . . . . . Total Damage 359 | . . . 137 137 . 32 53 . . . . . . . . . . . . . Kills 5 | . . . 1 3 . 1 . . . . . . . . . . . . . . Allies Corrupted . | . . . . . . . . . . . . . . . . . . . . . Allies Melted . | . . . . . . . . . . . . . . . . . . . . . Intel | -11 -10 -10 -9 -9 -9 -8 -8 -7 -7 -7 -7 -6 -6 -6 -6 -5 -5 -5 -4 -4 ------- Run | Yrd Mat Min Mat Min Exi Min Mat Fac Was Fac DSF Fac Low Low Dat Pro Fac DSF Fac Arm Active Infowar (turns) 605 | . . . . . . . . . . . . 135 90 90 18 126 3 27 116 . Sensors 605 | . . . . . . . . . . . . 135 90 90 18 126 3 27 116 . Robot Analysis Total . | . . . . . . . . . . . . . . . . . . . . . Derelict Logs Recovered 3 | . . . . 1 . . . . . . . . 1 . . 1 . . . . Drone Launches 11 | . . . . 3 . 3 5 . . . . . . . . . . . . . Drone Recoveries 8 | . . . . 3 . 3 2 . . . . . . . . . . . . . Exploration | -11 -10 -10 -9 -9 -9 -8 -8 -7 -7 -7 -7 -6 -6 -6 -6 -5 -5 -5 -4 -4 ------------- Run | Yrd Mat Min Mat Min Exi Min Mat Fac Was Fac DSF Fac Low Low Dat Pro Fac DSF Fac Arm Turns Passed 4857 | 263 360 81 136 890 711 385 731 271 28 144 26 135 90 90 18 126 3 56 283 30 Spaces Moved 5665 | 115 195 43 79 530 444 131 786 556 83 262 106 336 391 389 78 545 5 81 481 29 Core 2 | 2 . . . . . . . . . . . . . . . . . . . . Treads 1641 | 113 195 43 79 530 444 131 106 . . . . . . . . . . . . . Legs 137 | . . . . . . . 137 . . . . . . . . . . . . . Wheels . | . . . . . . . . . . . . . . . . . . . . . Hover 8 | . . . . . . . . . . . . . . . . . . . . 8 Flight 3877 | . . . . . . . 543 556 83 262 106 336 391 389 78 545 5 81 481 21 Fastest Speed 23 | 50 160 160 160 160 160 160 27 25 28 23 23 23 23 23 23 23 23 23 26 29 Average Speed 67 | 158 160 160 160 160 160 160 61 27 28 24 23 23 23 23 23 23 23 28 36 40 Slowest Speed 170 | 160 160 160 160 160 160 160 170 30 28 28 23 23 23 23 23 23 23 35 109 70 Overloaded Moves . | . . . . . . . . . . . . . . . . . . . . . Propulsion Burnouts . | . . . . . . . . . . . . . . . . . . . . . Robots Hopped 16 | . . . . . . . 4 4 . 2 . 1 . 1 . . . . 4 . Potential Cave-ins 4 | . . . . . . . . 4 . . . . . . . . . . . . Cave-ins Triggered . | . . . . . . . . . . . . . . . . . . . . . Exploration Rate (%) 45 | 6 47 12 9 83 79 97 43 19 90 7 76 14 66 64 69 57 . 52 16 3 Regions Visited 20 Branch Regions 9 Pre-discovered Areas 1 | . . . . 1 . . . . . . . . . . . . . . . . Known Exits Taken 10 | . 1 . 1 . . . . . . 1 . 1 1 1 1 1 1 . 1 . Unknown Exits Taken 6 | 1 . 1 . 1 1 1 1 . . . . . . . . . . . . . Scrap Searched 9 | . . . . 2 . . . . . . . . 1 1 . 5 . . . . Spaces Dug 16 | . . . . . . . . . . . . . . . . . . . 16 . Terrain Destroyed 198 | . . . . . . . . 53 . . . . . . . . . 48 97 . Melee 8 | . . . . . . . . . . . . . . . . . . . 8 . Projectile . | . . . . . . . . . . . . . . . . . . . . . AOE 190 | . . . . . . . . 53 . . . . . . . . . 48 89 . Terrain Rammed . | . . . . . . . . . . . . . . . . . . . . . Walls Destroyed . | . . . . . . . . . . . . . . . . . . . . . Machines Disabled . | . . . . . . . . . . . . . . . . . . . . . Actions | -11 -10 -10 -9 -9 -9 -8 -8 -7 -7 -7 -7 -6 -6 -6 -6 -5 -5 -5 -4 -4 --------- Run | Yrd Mat Min Mat Min Exi Min Mat Fac Was Fac DSF Fac Low Low Dat Pro Fac DSF Fac Arm Total 6357 | 148 226 47 84 563 445 280 935 640 87 338 107 358 390 387 77 544 6 102 549 44 Wait 288 | . . . . 13 . 123 33 59 . 32 . . . . . . . . 18 10 Move 5615 | 114 194 42 78 529 443 130 777 549 82 257 105 333 390 386 77 544 4 80 472 29 Hop 15 | . . . . . . . 4 3 . 2 . 1 . 1 . . . . 4 . Pick Up 52 | 3 7 . . 4 . 2 13 3 1 8 1 2 . . . . . . 8 . Fast Attach 38 | 6 1 . 1 1 . . 8 4 1 7 . 1 . . . . . . 8 . Attach 20 | . . . . . . . 3 2 . . . 2 . . . . 2 1 8 2 Detach 5 | . . . . . . . . . . . . . . . . . . . 5 . Swap 29 | . 5 . 1 4 1 1 10 . 1 3 . 1 . . . . . . 2 . Drop 61 | . 7 . 1 5 1 3 21 2 2 13 1 1 . . . . . . 3 1 Fire 181 | 25 12 5 3 5 . 18 59 18 . 1 . 17 . . . . . 6 12 . Melee 11 | . . . . . . . . . . . . . . . . . . . 9 2 Ram . | . . . . . . . . . . . . . . . . . . . . . Kick 2 | . . . . . . . 2 . . . . . . . . . . . . . Crush 5 | . . . . 2 . 3 . . . . . . . . . . . . . . Escape Stasis 30 | . . . . . . . . . . 15 . . . . . . . 15 . . Rewire 5 | . . . . . . . 5 . . . . . . . . . . . . . Trap . | . . . . . . . . . . . . . . . . . . . . . Miscellaneous . | . . . . . . . . . . . . . . . . . . . . . Route ------- -11/Scrapyard -10/Materials (discovered 4 exits: *Mat x2 / *Min x2) -10/Mines -9/Materials (discovered 2 exits: *Min / Sto) -9/Mines (discovered 3 exits: *Mat / *Exi / [*Zio]) -9/Exiles -8/Mines (discovered 2 exits: *Mat x2) -8/Materials (discovered 2 exits: *Fac x2) -7/Factory -7/Waste -7/Factory -7/DSF -6/Factory -6/Lower Caves -6/Lower Caves -6/Data Miner -5/Proximity Caves -5/Factory (discovered 2 exits: Fac / DSF) -5/DSF -4/Factory (discovered 3 exits: [*Res] / [*Upp] / *Arm) -4/Armory History --------- Turn | Location | Event 13 | -11/Scrapyard | Discovered new exit (range 16) 264 | -11/Scrapyard | Entered Materials 312 | -10/Materials | Build established: Mutant 335 | -10/Materials | Identified exit to Mines 412 | -10/Materials | Discovered new exit (range 15) 488 | -10/Materials | Discovered new exit (range 6) 624 | -10/Materials | Entered Mines 673 | -10/Mines | Discovered new exit (range 12) 695 | -10/Mines | Assisted by bots powering up and referring to "LRC-V3" 705 | -10/Mines | Entered Materials 705 | -9/Materials | Accompanied by 3 allies 705 | -9/Materials | Evolved 2 slots: Utility x2 721 | -9/Materials | Identified exit to Mines 721 | -9/Materials | Identified exit to Storage 841 | -9/Materials | Entered Mines 841 | -9/Mines | Accompanied by 1 ally 842 | -9/Mines | A Derelict revealed a hidden shortcut to a safe place 866 | -9/Mines | Met a Derelict bent on vengeance 1167 | -9/Mines | Learned Materials machine intel 1208 | -9/Mines | Learned location of Storage (-9) 1280 | -9/Mines | Found the Drone Emporium 1286 | -9/Mines | Found Prototype Device 1286 | -9/Mines | Identified Thief Drone Bay 1342 | -9/Mines | Discovered new exit (range 7) 1501 | -9/Mines | Received a Rocket Launcher from a helpful Derelict 1723 | -9/Mines | Deemed a non-threat by the Exiles lab entrance 1724 | -9/Mines | Discovered new exit (range 5) 1731 | -9/Mines | Entered Exiles 1731 | -9/Exiles | Found Exiles lab abandoned 1731 | -9/Exiles | Accompanied by 1 ally 1752 | -9/Exiles | Discovered new exit (range 15) 2442 | -9/Exiles | Entered Mines 2442 | -8/Mines | Accompanied by 1 ally 2562 | -8/Mines | Destroyed 9 combat bots 2640 | -8/Mines | Discovered new exit (range 48) 2671 | -8/Mines | Discovered new exit (range 26) 2827 | -8/Mines | Entered Materials 2827 | -8/Materials | Evolved 2 slots: Propulsion x2 2828 | -8/Materials | Loaded intel: 47 machine locations 3100 | -8/Materials | Discovered new exit (range 15) 3540 | -8/Materials | Discovered new exit (range 3) 3558 | -8/Materials | Entered Factory 3558 | -7/Factory | Evolved 2 slots: Power x1, Propulsion x1 3579 | -7/Factory | Build established: Sprinter 3655 | -7/Factory | Lost 3 parts (2n1w) 3709 | -7/Factory | Central database locked down 3786 | -7/Factory | Repaired Flak Gun 3829 | -7/Factory | Sucked down chute 3829 | -7/Factory | Entered Waste 3836 | -7/Waste | Spotted C-40 Crusher 3837 | -7/Waste | Spotted C-40 Crusher 3840 | -7/Waste | Spotted C-40 Crusher 3844 | -7/Waste | Spotted C-40 Crusher 3847 | -7/Waste | Spotted C-40 Crusher 3847 | -7/Waste | Spotted C-40 Crusher 3849 | -7/Waste | Discovered new exit (range 12) 3857 | -7/Waste | Entered Factory 3996 | -7/Factory | Identified exit to DSF 4001 | -7/Factory | Entered DSF 4024 | -7/DSF | Discovered new exit (range 16) 4027 | -7/DSF | Additional patrols routed to DSF 4027 | -7/DSF | Entered Factory 4027 | -6/Factory | Evolved 2 slots: Utility x2 4149 | -6/Factory | Discovered new exit (range 9) 4162 | -6/Factory | Identified exit to Lower Caves 4162 | -6/Factory | Entered Lower Caves 4204 | -6/Lower Caves | Learned Factory stockpile data 4248 | -6/Lower Caves | Discovered new exit (range 7) 4252 | -6/Lower Caves | Identified exit to Lower Caves 4252 | -6/Lower Caves | Entered another Lower Caves area 4340 | -6/Lower Caves | Discovered new exit (range 10) 4342 | -6/Lower Caves | Identified exit to Data Miner 4342 | -6/Lower Caves | Entered Data Miner 4342 | -6/Data Miner | Discovered new exit (range 6) 4347 | -6/Data Miner | Met Data Miner 4351 | -6/Data Miner | Acquired the access code to Warlord's prototype stash 4355 | -6/Data Miner | Received God Mode back door access code from Data Miner 4360 | -6/Data Miner | Identified exit to Proximity Caves 4360 | -6/Data Miner | Entered Proximity Caves 4368 | -5/Proximity Caves | Learned location of 1 exit from Factory 4481 | -5/Proximity Caves | Discovered new exit (range 9) 4484 | -5/Proximity Caves | Spotted B-75 Beast 4485 | -5/Proximity Caves | Identified exit to Factory 4486 | -5/Proximity Caves | Entered Factory 4486 | -5/Factory | Evolved 2 slots: Utility x2 4487 | -5/Factory | Identified exit to Factory 4489 | -5/Factory | Identified exit to DSF 4489 | -5/Factory | Entered DSF 4498 | -5/DSF | Discovered exit to Factory (range 15) 4515 | -5/DSF | Additional patrols routed to DSF 4545 | -5/DSF | Entered Factory 4545 | -4/Factory | Evolved 2 slots: Propulsion x1, Utility x1 4555 | -4/Factory | Lost 10 parts (1p4n2u3w) 4556 | -4/Factory | Discovered new exit (range 11) 4556 | -4/Factory | Discovered new exit (range 8) 4680 | -4/Factory | Destroyed 7 combat bots 4708 | -4/Factory | Lost 3 parts (1p1n1u) 4826 | -4/Factory | Discovered new exit (range 8) 4828 | -4/Factory | Identified exit to Armory 4828 | -4/Factory | Entered Armory 4852 | -4/Armory | Core integrity fell below 50% 4856 | -4/Armory | Core integrity fell below 20% 4858 | -4/Armory | Destroyed by D-63 Destroyer with Heavy Rocket Launcher Last Messages --------------- LOCATION=ARMORY GOAL=ESCAPE 04832_ Penetrated by Slug. 04841_ System corrupted: Matter fused (-2). 04845_ Cesium-ion Thruster destroyed. 04847_ Penetrated by Slug. 04849_ Imp. Propulsion Shielding destroyed. 04849_ Cesium-ion Thruster destroyed. 04849_ Reinforced Shell breached. 04849_ Dropped Powered Hammer. 04849_ Cesium-ion Thruster destroyed. 04850_ Imp. Sensor Array destroyed. 04850_ Penetrated by Slug. 04851_ Mic. Fission Core destroyed. 04851_ Y-64 Sentinel destroyed. 04851_ Adv. Targeting Computer destroyed. 04851_ Sml. Storage Unit destroyed. 04851_ Hacking Suite destroyed. 04854_ D-63 Destroyer destroyed. 04856_ The unstable cave ceiling collapses. Map ----- +----------------------------------------------------+ | ??????????????????????????????????? | | ??????????????????????????????????? | | ??????????????????????????????????? | | ??????????????????????????????????? | | ??????????????????????????????????? | | ??????????????????????????????????? | | ??????????????????????????????????? | | ??????????????????????????????????? | | ??????????????????????????????????? | | ??????????????????????????????????? | | ?????????????????????????????? ???? | | ?????????????????????????????? ???? | | ?????????????????????????????? ???? | | ?????????????????#############+##?? | | ?????????????????? #?? | | ???????????????????? ### | | ?????????????????????? # | | ??????????????????????? # | | ???????????????########## # | | ???????????????# | | ???????????????# | | ???????????????# | | ???????????????# | | ???????????????# | | ???????????????# | | ???????????????# " @ ## | | ???????????????# ddd ##? | | ???????????????# #?? | | ???????????????# """" ##?? | | ???????????????# ??? # #??? | | ???????????????# ???? # #??? | | ???????????????######????#### #??? | | ????????????????????????????# #??? | | ????????????????????????????# #??? | | ????????????????????????????# #??? | | ????????????????????????????# #??? | | ????????????????????????????# #??? | | ????????????????????????????# #??? | | ????????????????????????????####??? | | ??????????????????????????????????? | | ??????????????????????????????????? | | ??????????????????????????????????? | | ??????????????????????????????????? | | ??????????????????????????????????? | | ??????????????????????????????????? | | ??????????????????????????????????? | | ??????????????????????????????????? | | ??????????????????????????????????? | | ??????????????????????????????????? | | ??????????????????????????????????? | +----------------------------------------------------+ Best States ------------- Heat Dissipation 43 Energy Generation 25 Energy Capacity 350 Matter Stores 300 Matter Capacity 300 Sight Range 16 Robot Scan Range 16 Terrain Scan Density 10 Armor Coverage 150 Propulsion Shielding 66 Evasion (%) 65 Targeting Accuracy 24 Core Analysis 6 Recoil Reduction 2 Offensive Hacking 24 Item Schematics ----------------- Combat Drone Bay | -6/Data Miner | Free Lgt. Regenerative Plating | -6/Data Miner | Free Cld. Gravmag System | -6/Data Miner | Free Exp. Heat Sink | -6/Data Miner | Free Neutron Cannon | -6/Data Miner | Free Adv. VSS Leg | -6/Data Miner | Free Imp. Force Field | -6/Data Miner | Free Hvy. Disruptor Cannon | -6/Data Miner | Free Imp. Component Analysis Suite | -6/Data Miner | Free Adv. Power Amplifier | -6/Data Miner | Free Adv. Focal Shield | -6/Data Miner | Free Particle Reactor | -6/Data Miner | Free Robot Schematics ------------------ B-60 Warrior | -6/Data Miner | Free R-10 Processor | -6/Data Miner | Free H-66 Slayer | -6/Data Miner | Free S-27 Virus | -6/Data Miner | Free Fabricated ------------ Nothing Repaired ---------- Flak Gun | 5% | -7/Factory Studied --------- Flight Unit | -8/Materials | Hacked Hvy. Missile Launcher | -7/Factory | Hacked Alien Tech Used ----------------- None Achievements -------------- None Challenges ------------ None Game ------ Seed EtherialGuidedHoverbase Manual? 0 Play Time 00:52:17 Cumulative 68.6 hours Start 2026.02.17 @ 10:46:19 End 2026.02.17 @ 11:39:09 Sessions 1 Manual Loads 0 Difficulty Rogue Special Mode None Game No. 119 Rogue 119 Adventurer 0 Explorer 0 Win Type - Total 0 Types 0/0/0/0/0/0/0/0/0/0 Lore% 35 Gallery% 41 Achievement% 29 Wizard Run 0 Options --------- Layout 1 ASCII 0 Keyboard 1 Movement Arrows Keybinds 0 Fullscreen 1 Font 24/Smallcaps Map View 50x35 Zoom Use 0% Tactical HUD 1 Map Filters NONE Filters NONE Steam 1 RUN: a7cb6305-d045-428b-8202-eeb1ad6b08e7